bitfinex/quotes_SOLUSD_20251214
["timestamp","ask_amount","ask_price","bid_price","bid_amount"]
[1765749625205,8.36302188,129.99,129.95,7.69488603]
[1765749625408,8.36302188,129.99,129.95,16.11488603]
[1765749625615,0.67,129.98,129.95,16.11488603]
[1765749625813,0.67,129.98,129.95,8.42]
[1765749627196,3.44336429,129.98,129.95,8.42]
[1765749627427,11.13738815,129.98,129.95,8.42]
[1765749627617,0.72,129.97,129.95,8.42]
[1765749628334,3.49336429,129.97,129.92,10.46998541]
[1765749628506,3.49336429,129.97,129.92,18.88998541]
[1765749628815,0.72,129.96,129.92,16.11662112]
[1765749629631,10.18924003,129.96,129.92,16.11662112]
[1765749629808,8.41484809,129.96,129.92,16.11662112]
[1765749630015,0.72,129.95,129.92,16.11662112]
[1765749630631,0.72,129.95,129.92,17.89101306]
[1765749633833,0.72,129.96,129.93,1.77439194]
[1765749636222,0.72,129.96,129.94,7.69585962]
[1765749642646,0.72,129.97,129.94,17.89025156]
[1765749642937,0.72,129.97,129.95,1.77439194]
[1765749645622,0.72,129.97,129.95,9.46953766]
[1765749647543,0.72,129.97,129.95,7.69514572]
[1765749647753,0.72,129.97,129.94,17.89001638]
[1765749648754,0.72,129.97,129.94,16.11562444]
[1765749649119,8.41415908,129.97,129.94,8.42]
[1765749649548,0.72,129.96,129.94,8.42]
[1765749651052,105.42000001,129.99,129.94,16.11570179]
[1765749651356,0.72,129.98,129.94,17.89009373]
[1765749654542,0.72,129.98,129.95,1.77439194]
[1765749656159,0.72,129.98,129.96,7.69467528]
[1765749656855,0.72,129.98,129.95,7.69503493]
[1765749661853,0.71000001,129.99,129.95,7.69503493]
[1765749662066,0.71000001,129.99,129.96,10.19439194]
[1765749662967,0.71000001,129.99,129.96,17.88903663]
[1765749664548,0.71000001,129.99,129.97,1.77439194]
[1765749665260,0.71000001,129.99,129.96,16.11464469]
[1765749665644,0.71000001,129.99,129.96,17.88903663]
[1765749665969,0.71000001,129.99,129.96,16.11464469]
[1765749667472,0.71000001,129.99,129.96,17.88767491]
[1765749669667,0.71000001,129.99,129.97,9.46698983]
[1765749671473,0.71000001,129.99,129.97,7.69395961]
[1765749671870,1e-08,129.99,129.97,9.46698983]
[1765749673068,1e-08,129.99,129.98,17.37210649]
[1765749673268,1e-08,129.99,129.98,19.28729828]
[1765749673572,0.71000001,129.99,129.98,8.42]
[1765749674158,1e-08,129.99,129.98,8.42]
[1765749674357,0.71000001,129.99,129.98,8.42]
[1765749674668,0.71000001,129.99,129.97,7.694063]
[1765749675787,1e-08,129.99,129.97,9.46709322]
[1765749676453,1e-08,129.99,129.98,1.77303022]
[1765749678868,1e-08,129.99,129.98,17.88652152]
[1765749685773,0.71000001,129.99,129.98,16.1134913]
[1765749692886,0.71000001,129.99,129.98,18.88331579]
[1765749693065,0.71000001,129.99,129.98,8.42]
[1765749693697,0.71000001,129.99,129.98,16.1134913]
[1765749695491,1e-08,129.99,129.98,18.88331579]
[1765749696471,0.69000001,129.99,129.98,18.88331579]
[1765749696873,0.69000001,129.99,129.98,8.42]
[1765749699007,0.69000001,129.99,129.98,16.1134913]
[1765749699877,1e-08,129.99,129.98,18.88331579]
[1765749700693,1e-08,129.99,129.98,27.97758385]
[1765749702579,1e-08,129.99,129.98,41.02467505]
[1765749703302,1e-08,129.99,129.98,41.79402418]
[1765749703677,1e-08,129.99,129.98,45.48213845]
[1765749704393,1e-08,129.99,129.98,42.25316907]
[1765749707798,1e-08,129.99,129.98,45.33186831]
[1765749708801,1e-08,129.99,129.98,48.56083769]
[1765749709300,1e-08,129.99,129.98,45.33186831]
[1765749710312,1e-08,129.99,129.98,48.56083769]
[1765749710598,1e-08,129.99,129.98,45.33186831]
[1765749714605,1e-08,129.99,129.98,107.93186831]
[1765749714976,1e-08,129.99,129.98,111.16083769]
[1765749718536,1e-08,129.99,129.98,112.15083769]
[1765749721435,1e-08,129.99,129.98,108.92186831]
[1765749722028,1e-08,129.99,129.98,46.32186831]
[1765749722215,1e-08,129.99,129.98,45.55251918]
[1765749722626,1e-08,129.99,129.98,45.41035761]
[1765749723316,1e-08,129.99,129.98,45.55251918]
[1765749724620,1e-08,129.99,129.98,46.32186831]
[1765749724933,1e-08,129.99,129.98,45.55251918]
[1765749726813,0.70000001,129.99,129.98,45.55251918]
[1765749727330,1e-08,129.99,129.98,45.55251918]
[1765749728332,0.70000001,129.99,129.98,45.55251918]
[1765749732632,1e-08,129.99,129.98,45.55251918]
[1765749734447,1e-08,129.99,129.98,49.55083769]
[1765749735437,1e-08,129.99,129.98,46.32186831]
[1765749737444,1e-08,129.99,129.98,49.55083769]
[1765749738443,1e-08,129.99,129.98,112.15083769]
[1765749739433,1e-08,129.99,129.98,108.92186831]
[1765749739666,1e-08,129.99,129.98,108.92197371]
[1765749740114,1e-08,129.99,129.98,107.86830144]
[1765749740315,0.70000001,129.99,129.98,107.86830144]
[1765749740525,0.70000001,129.99,129.98,108.15262458]
[1765749740819,0.70000001,129.99,129.98,45.41046301]
[1765749741035,0.70000001,129.99,129.98,45.55262458]
[1765749747433,0.70000001,129.99,129.98,42.47392534]
[1765749747837,0.70000001,129.99,129.98,34.05392534]
[1765749748148,0.70000001,129.99,129.98,42.47392534]
[1765749751349,0.70000001,129.99,129.98,41.31263916]
[1765749754565,1e-08,129.99,129.98,41.31263916]
[1765749756262,1e-08,129.99,129.98,44.3913384]
[1765749756644,1e-08,129.99,129.98,46.459127]
[1765749757367,1e-08,129.99,129.98,44.3913384]
[1765749760764,0.70000001,129.99,129.98,44.3913384]
[1765749760934,1e-08,129.99,129.98,44.3913384]
[1765749769381,0.70000001,129.99,129.98,44.3913384]
[1765749774251,0.70000001,129.99,129.98,17.1034913]
[1765749774448,0.70000001,129.99,129.98,19.1712799]
[1765749775572,0.70000001,129.99,129.98,19.17136547]
[1765749778755,0.70000001,129.99,129.98,28.26563353]
[1765749779891,1e-08,129.99,129.98,28.26563353]
[1765749780192,1e-08,129.99,129.98,33.41244392]
[1765749785797,1e-08,129.99,129.98,96.01244392]
[1765749785973,0.2,130.0,129.99,9.09426806]
[1765749786291,0.2,130.0,129.99,13.2300164]
[1765749786668,0.2,130.0,129.99,16.30871564]
[1765749787105,0.2,130.0,129.99,24.00161509]
[1765749792391,0.2,130.0,129.99,37.04870629]
[1765749799521,1.11957078,130.01,129.99,37.04870629]
[1765749799722,0.2,130.02,130.01,8.80994492]
[1765749800015,0.2,130.02,130.01,11.16214223]
[1765749800216,0.2,130.02,130.01,14.24036763]
[1765749800730,0.2,130.03,130.02,0.28432314]
[1765749800886,0.2,130.04,130.03,9.09426806]
[1765749801214,0.2,130.04,130.03,11.16214223]
[1765749801400,0.2,130.04,130.03,14.23989393]
[1765749801600,0.2,130.04,130.03,21.93042688]
[1765749804188,1.27580714,130.06,130.05,13.0470912]
[1765749804408,1.27580714,130.06,130.05,34.6971076]
[1765749804787,1.27580714,130.06,130.05,37.77414902]
[1765749805492,1.27580714,130.06,130.05,45.46349926]
[1765749809618,1.27580714,130.06,130.05,108.06349926]
[1765749811295,1.27580714,130.06,130.05,108.05651272]
[1765749811614,1.27580714,130.06,130.05,110.37894574]
[1765749814601,1.94580714,130.06,130.05,110.37894574]
[1765749815330,1.27580714,130.06,130.05,110.37894574]
[1765749815488,0.2,130.07,130.06,9.09426806]
[1765749815687,0.2,130.07,130.06,15.54546288]
[1765749815891,1.22616672,130.11,130.08,22.14135926]
[1765749816197,1.22616672,130.11,130.1,12.31986547]
[1765749816597,1.22616672,130.11,130.1,15.39596036]
[1765749817001,0.87,130.12,130.11,9.09426806]
[1765749817218,0.2,130.12,130.11,20.73986547]
[1765749817625,0.2,130.12,130.11,23.96546288]
[1765749817840,0.87,130.12,130.11,23.96546288]
[1765749818596,0.87,130.12,130.11,31.65126719]
[1765749820029,0.2,130.12,130.11,31.65126719]
[1765749820327,0.87,130.12,130.11,31.65126719]
[1765749820694,0.2,130.12,130.11,31.65126719]
[1765749821504,1e-08,130.12,130.11,31.65126719]
[1765749822211,0.90118897,130.15,130.13,22.14135926]
[1765749822401,1.57118897,130.15,130.14,20.73986547]
[1765749822922,1.57118897,130.15,130.14,23.81501442]
[1765749823495,1e-08,130.15,130.14,23.81501442]
[1765749823734,0.67,130.17,130.16,21.85703612]
[1765749823895,0.67,130.18,130.17,8.80994492]
[1765749824097,0.67,130.18,130.17,25.19652971]
[1765749824296,0.67,130.18,130.17,28.42212712]
[1765749827434,0.91578855,130.19,130.17,28.42212712]
[1765749827603,0.91578855,130.19,130.18,3.22559741]
[1765749828750,0.91578855,130.19,130.18,10.90726894]
[1765749829144,0.24578855,130.19,130.18,10.90726894]
[1765749829658,0.24578855,130.19,130.18,36.27422561]
[1765749831134,1.13937069,130.2,130.19,9.09426806]
[1765749831346,1.13937069,130.2,130.19,23.96546288]
[1765749831651,1.80937069,130.2,130.19,20.73986547]
[1765749833323,1.80937069,130.2,130.19,20.00094696]
[1765749833622,1.80937069,130.2,130.19,28.42094696]
[1765749836853,1.80937069,130.2,130.19,28.27878539]
[1765749837049,1.80937069,130.2,130.19,28.42094696]
[1765749838557,1.13937069,130.2,130.19,28.42094696]
[1765749838958,1e-08,130.2,130.19,28.42094696]
[1765749839156,1e-08,130.2,130.19,31.49467808]
[1765749839533,1e-08,130.2,130.19,34.72027549]
[1765749844644,0.65000001,130.2,130.19,31.49467808]
[1765749844854,1e-08,130.2,130.19,31.49467808]
[1765749846570,1e-08,130.2,130.19,34.72027549]
[1765749847428,1e-08,130.2,130.19,34.70680207]
[1765749847876,0.65000001,130.2,130.19,28.41421025]
[1765749848068,0.65000001,130.2,130.19,28.12988711]
[1765749848253,0.65000001,130.2,130.19,28.27204868]
[1765749848653,0.65000001,130.2,130.19,28.41421025]
[1765749848853,0.65000001,130.2,130.19,7.68108149]
[1765749849046,0.65000001,130.2,130.19,10.89994219]
[1765749850466,0.65000001,130.2,130.19,3.2188607]
[1765749850652,0.65000001,130.2,130.19,7.68108149]
[1765749850861,0.65000001,130.2,130.18,19.30032079]
[1765749851178,0.65000001,130.2,130.17,10.90101559]
[1765749852171,0.65000001,130.2,130.17,7.68215489]
[1765749852481,0.65000001,130.2,130.17,10.90101559]
[1765749853192,0.65000001,130.2,130.19,3.2188607]
[1765749853992,1e-08,130.2,130.19,12.31312876]
[1765749854152,1e-08,130.2,130.19,19.99421025]
[1765749854349,1e-08,130.2,130.19,37.21281408]
[1765749854552,1e-08,130.2,130.19,40.43167478]
[1765749854961,0.95265193,130.25,130.24,0.28432314]
[1765749855174,6.21223115,130.24,130.23,21.85703612]
[1765749855381,6.21223115,130.24,130.23,33.47589682]
[1765749856252,6.21223115,130.24,130.23,41.15461908]
[1765749856784,0.95265193,130.25,130.23,41.15461908]
[1765749856949,0.95265193,130.25,130.24,12.02880562]
[1765749857147,0.95265193,130.25,130.24,12.31312876]
[1765749858286,0.95601402,130.27,130.26,21.85703612]
[1765749858287,0.30601402,130.27,130.26,21.85703612]
[1765749858475,0.30601402,130.27,130.26,33.47589682]
[1765749858683,0.95601402,130.27,130.26,33.47589682]
[1765749860191,0.95601402,130.27,130.26,41.1528506]
[1765749860795,0.95601402,130.27,130.26,41.43717374]
[1765749863775,0.94405995,130.29,130.27,8.80994492]
[1765749864106,0.94405995,130.29,130.28,12.02880562]
[1765749864307,0.94405995,130.29,130.28,19.70458087]
[1765749864471,1.59405995,130.29,130.28,19.98890401]
[1765749866339,0.94405995,130.29,130.28,19.98890401]
[1765749866549,0.94405995,130.29,130.28,8.08994492]
[1765749866550,1.61405995,130.29,130.28,8.08994492]
[1765749866706,1.61405995,130.29,130.28,18.98458087]
[1765749866907,0.94405995,130.29,130.28,19.97890401]
[1765749867106,1e-08,130.29,130.28,28.37890401]
[1765749867329,1e-08,130.29,130.28,27.66890401]
[1765749868334,1e-08,130.29,130.28,40.71599521]
[1765749869327,0.67000001,130.29,130.28,37.49713451]
[1765749869552,0.67000001,130.29,130.28,40.71599521]
[1765749870610,0.67000001,130.29,130.28,37.21281137]
[1765749870818,0.67000001,130.29,130.28,40.43167207]
[1765749871538,0.67000001,130.29,130.28,29.12286645]
[1765749871838,0.67000001,130.29,130.28,23.94172715]
[1765749872061,0.67000001,130.29,130.28,20.72286645]
[1765749872341,0.67000001,130.29,130.28,23.94172715]
[1765749873136,0.67000001,130.29,130.27,10.89501067]
[1765749873316,0.67000001,130.29,130.25,3.2188607]
[1765749873640,0.67000001,130.29,130.23,2.05924651]
[1765749873641,2.05924651,130.28,130.23,2.05924651]
[1765749873844,2.05924651,130.28,130.22,21.94688984]
[1765749874045,2.74924651,130.27,130.22,8.36910617]
[1765749874252,2.05924651,130.26,130.22,8.36910617]
[1765749874552,2.05924651,130.25,130.22,0.69]
[1765749874743,2.74924651,130.25,130.22,0.69]
[1765749874944,2.74924651,130.24,130.19,7.68096607]
[1765749875246,10.42795452,130.24,130.19,7.68096607]
[1765749875549,2.05924651,130.22,130.17,10.45924651]
[1765749875751,2.05924651,130.21,130.16,2.05924651]
[1765749876115,0.69,130.2,130.16,2.05924651]
[1765749876320,0.69,130.2,130.16,9.74167898]
[1765749876537,0.69,130.2,130.17,2.05924651]
[1765749877092,0.69,130.2,130.17,7.68208207]
[1765749877345,2.74924651,130.2,130.16,7.68268503]
[1765749877718,2.74924651,130.19,130.14,7.68357251]
[1765749877914,2.74924651,130.19,130.14,9.74281902]
[1765749878133,0.69,130.18,130.14,9.74281902]
[1765749878338,0.69,130.18,130.16,2.05924651]
[1765749879066,0.69,130.18,130.15,26.89188262]
[1765749879236,0.69,130.18,130.15,2.05924651]
[1765749879654,0.69,130.18,130.16,2.05924651]
[1765749880558,0.69,130.18,130.15,2.05924651]
[1765749880963,0.69,130.18,130.13,26.89589495]
[1765749881147,2.74924651,130.18,130.13,9.74386957]
[1765749881533,0.69,130.17,130.13,9.74386957]
[1765749881739,0.69,130.17,130.13,7.68462306]
[1765749882158,0.69,130.17,130.14,2.05924651]
[1765749883264,0.69,130.17,130.15,7.68344218]
[1765749883460,0.69,130.17,130.12,32.31628263]
[1765749884069,0.69,130.17,130.14,7.68397132]
[1765749885644,0.69,130.17,130.14,9.74716437]
[1765749886546,0.69,130.17,130.15,2.06319305]
[1765749886747,0.69,130.17,130.15,9.7463355]
[1765749887544,0.69,130.17,130.15,7.68314245]
[1765749888986,0.69,130.19,130.16,2.06319305]
[1765749889278,0.69,130.18,130.16,2.06319305]
[1765749890769,0.69,130.2,130.17,2.06319305]
[1765749890958,0.69,130.2,130.18,7.68167153]
[1765749894675,0.69,130.2,130.17,18.55539962]
[1765749895450,0.69,130.2,130.17,9.7454547]
[1765749895678,0.69,130.2,130.17,7.68226165]
[1765749897373,0.69,130.2,130.15,8.42]
[1765749897374,8.37066809,130.2,130.15,18.16612368]
[1765749897557,10.43386114,130.2,130.15,18.16612368]
[1765749897754,0.67,130.19,130.15,18.16612368]
[1765749897954,2.06319305,130.18,130.14,7.68386931]
[1765749898169,2.73319305,130.19,130.14,7.68386931]
[1765749898477,0.67,130.18,130.14,7.68386931]
[1765749901855,8.35168992,130.18,130.14,7.68386931]
[1765749902053,10.41488297,130.18,130.12,29.5418298]
[1765749902264,2.06319305,130.15,130.11,0.2]
[1765749902564,2.06319305,130.14,130.11,0.2]
[1765749902753,0.67,130.14,130.11,0.2]
[1765749902972,0.67,130.13,130.11,2.26319305]
[1765749903171,13.0470912,130.17,130.12,2.06319305]
[1765749903389,0.67,130.15,130.13,9.74755639]
[1765749903790,18.16488297,130.18,130.13,9.74755639]
[1765749903993,0.67,130.16,130.14,2.06319305]
[1765749904164,0.67,130.16,130.13,9.74755639]
[1765749904485,0.67,130.16,130.12,16.49493261]
[1765749904691,0.67,130.16,130.12,18.55812566]
[1765749905394,0.67,130.16,130.12,7.68498769]
[1765749905789,10.41614262,130.16,130.11,16.69554499]
[1765749906089,10.41614262,130.16,130.11,0.2]
[1765749906295,0.67,130.15,130.11,0.2]
[1765749906797,2.06319305,130.14,130.11,0.2]
[1765749907293,0.67,130.13,130.11,0.2]
[1765749907804,0.67,130.13,130.11,7.88567385]
[1765749907975,0.67,130.14,130.12,2.06319305]
[1765749908173,0.67,130.14,130.11,7.88567385]
[1765749908502,0.67,130.14,130.12,2.06319305]
[1765749909163,0.67,130.16,130.13,2.06319305]
[1765749909366,0.67,130.16,130.14,7.68403258]
[1765749909574,0.67,130.16,130.14,9.74722563]
[1765749910675,16.10216517,130.18,130.14,9.74722563]
[1765749910676,0.67,130.17,130.14,9.74722563]
[1765749910995,0.67,130.17,130.14,2.06319305]
[1765749911196,0.67,130.17,130.14,7.68399607]
[1765749913907,10.4154932,130.17,130.12,10.87313797]
[1765749914298,0.67,130.16,130.12,10.87313797]
[1765749914472,0.67,130.16,130.13,9.74775432]
[1765749915783,0.67,130.16,130.13,10.43775432]
[1765749915995,0.67,130.16,130.14,2.06319305]
[1765749917309,0.67,130.16,130.14,9.74706523]
[1765749920122,0.67,130.16,130.13,9.74771352]
[1765749921778,0.67,130.16,130.13,9.74758981]
[1765749924029,0.67,130.16,130.14,9.74699169]
[1765749925937,0.67,130.16,130.14,7.68392235]
[1765749927313,0.67,130.16,130.14,9.74699169]
[1765749927626,16.77188046,130.18,130.14,10.41699169]
[1765749927830,0.67,130.17,130.14,10.41699169]
[1765749928043,9.09,130.18,130.16,2.06306934]
[1765749928201,0.67,130.18,130.16,2.06306934]
[1765749929216,0.67,130.18,130.15,7.68294918]
[1765749929534,0.67,130.18,130.15,9.74601852]
[1765749929834,0.67,130.18,130.15,7.68294918]
[1765749930002,0.67,130.18,130.15,9.74601852]
[1765749930327,0.67,130.18,130.16,9.74583934]
[1765749930531,0.67,130.18,130.16,7.68277]
[1765749930832,0.67,130.18,130.15,9.7462998]
[1765749931135,8.3517698,130.18,130.14,2.06306934]
[1765749931737,0.7,130.17,130.14,2.06306934]
[1765749932307,0.7,130.17,130.15,2.06306934]
[1765749932614,0.7,130.17,130.15,9.74645772]
[1765749933453,0.7,130.17,130.15,10.90603106]
[1765749934034,9.12,130.18,130.15,10.90603106]
[1765749934703,8.42,130.18,130.15,7.68338838]
[1765749935033,0.7,130.17,130.15,10.90603106]
[1765749935830,0.7,130.25,130.16,3.92264268]
[1765749936151,0.7,130.25,130.23,3.22264268]
[1765749936321,0.7,130.25,130.19,9.09426806]
[1765749936642,20.02054894,130.25,130.19,8.80994492]
[1765749936804,20.02054894,130.25,130.19,16.49097754]
[1765749936805,16.79790626,130.25,130.19,16.49097754]
[1765749937002,0.7,130.24,130.2,3.22264268]
[1765749937219,0.7,130.24,130.21,3.22264268]
[1765749937421,0.7,130.26,130.23,3.22264268]
[1765749938247,0.7,130.26,130.21,17.22994492]
[1765749938455,0.7,130.26,130.22,3.22264268]
[1765749939553,0.7,130.26,130.23,7.67872226]
[1765749941129,0.7,130.26,130.22,10.90181368]
[1765749941961,0.7,130.26,130.22,7.679171]
[1765749942140,8.37701699,130.26,130.21,28.1323868]
[1765749942331,8.37701699,130.26,130.21,28.8323868]
[1765749942535,0.7,130.25,130.21,28.8323868]
[1765749943935,0.7,130.25,130.21,28.1323868]
[1765749944255,8.37758545,130.25,130.21,28.1323868]
[1765749944552,8.37758545,130.25,130.21,28.8323868]
[1765749944754,0.7,130.24,130.21,28.8323868]
[1765749945949,7.6771115,130.26,130.22,3.22264268]
[1765749946154,0.7,130.25,130.22,3.22264268]
[1765749946754,0.7,130.25,130.21,17.18974412]
[1765749946952,0.7,130.25,130.22,3.22264268]
[1765749948143,8.37759039,130.25,130.22,3.22264268]
[1765749948543,0.7,130.24,130.22,3.22264268]
[1765749948873,0.7,130.24,130.21,16.48974412]
[1765749948874,0.7,130.24,130.21,10.90244188]
[1765749949076,0.7,130.24,130.21,3.22264268]
[1765749949676,8.37819446,130.24,130.2,10.9029067]
[1765749949874,0.7,130.24,130.21,3.22264268]
[1765749950084,0.7,130.23,130.21,3.22264268]
[1765749951177,0.7,130.23,130.21,10.9025385]
[1765749952683,0.7,130.23,130.17,19.2049465]
[1765749952845,8.37880436,130.23,130.19,3.22264268]
[1765749953246,0.7,130.22,130.19,10.90370477]
[1765749953952,0.7,130.22,130.2,3.22264268]
[1765749954160,0.7,130.22,130.19,11.60370477]
[1765749954548,8.37933014,130.22,130.19,3.22264268]
[1765749955083,8.37933014,130.22,130.18,10.90407827]
[1765749955280,0.7,130.21,130.18,10.90407827]
[1765749955665,0.7,130.21,130.17,10.90477356]
[1765749956248,0.7,130.21,130.16,19.30533717]
[1765749956442,7.68049155,130.2,130.16,19.30533717]
[1765749956945,0.7,130.19,130.16,10.90533717]
[1765749957177,0.7,130.19,130.16,7.68269449]
[1765749957392,0.7,130.19,130.16,10.90533717]
[1765749958084,0.7,130.19,130.16,11.58533717]
[1765749958248,0.7,130.19,130.16,10.90533717]
[1765749959789,0.7,130.19,130.16,7.68269449]
[1765749961097,0.7,130.19,130.16,11.58494656]
[1765749963288,0.7,130.2,130.17,3.90225207]
[1765749964164,0.7,130.2,130.17,10.90412264]
[1765749964791,7.67954887,130.22,130.17,10.90412264]
[1765749964986,0.7,130.21,130.18,0.68]
[1765749965285,8.380017,130.21,130.16,3.22225207]
[1765749965590,11.60226907,130.21,130.16,11.58492863]
[1765749965785,0.7,130.2,130.16,11.58492863]
[1765749967691,8.38052893,130.2,130.16,7.68267656]
[1765749967875,8.38052893,130.2,130.15,7.6833856]
[1765749968203,0.7,130.19,130.15,11.58563767]
[1765749969103,16.10014264,130.21,130.16,11.5846643]
[1765749969288,16.80014264,130.21,130.16,11.5846643]
[1765749969483,0.7,130.2,130.17,3.90225207]
[1765749969688,0.7,130.2,130.17,3.22225207]
[1765749972577,0.7,130.2,130.17,10.9042163]
[1765749973115,0.7,130.2,130.17,11.5842163]
[1765749973805,0.7,130.2,130.16,8.80994492]
[1765749973990,0.7,130.2,130.16,12.71219699]
[1765749974907,0.7,130.2,130.17,7.68226165]
[1765749975402,0.7,130.2,130.17,8.36226165]
[1765749976510,0.7,130.2,130.17,11.58451372]
[1765749978297,0.7,130.2,130.17,7.68226165]
[1765749978802,0.7,130.2,130.17,8.36226165]
[1765749979820,8.3806815,130.2,130.16,10.90494942]
[1765749980307,0.7,130.19,130.16,10.90494942]
[1765749980806,0.7,130.19,130.16,11.58494942]
[1765749983402,0.7,130.19,130.16,10.90494942]
[1765749983725,8.38113678,130.19,130.16,3.22225207]
[1765749984127,0.7,130.18,130.15,3.90225207]
[1765749984329,0.7,130.18,130.15,11.58565254]
[1765749988845,8.38172236,130.18,130.14,19.71598956]
[1765749989212,0.72,130.17,130.14,19.71598956]
[1765749989421,0.72,130.17,130.15,7.68332696]
[1765749989621,0.72,130.17,130.15,10.90557903]
[1765749990113,8.4012898,130.19,130.15,11.56557903]
[1765749990420,0.72,130.19,130.17,3.22225207]
[1765749990610,8.42,130.21,130.17,3.22225207]
[1765749990815,0.72,130.2,130.17,3.22225207]
[1765749991224,0.72,130.2,130.17,3.93225207]
[1765749991643,0.72,130.2,130.17,11.61446357]
[1765749991939,0.72,130.2,130.18,3.22225207]
[1765749992111,8.42,130.21,130.18,3.93225207]
[1765749992313,0.72,130.22,130.19,3.93225207]
[1765749993337,0.72,130.22,130.19,11.6132455]
[1765749995546,0.72,130.22,130.19,10.45216469]
[1765749997028,105.42,130.23,130.2,0.71]
[1765749997382,7.6787229,130.23,130.19,9.7420632]
[1765749997663,0.72,130.22,130.19,10.4520632]
[1765749999265,0.72,130.22,130.2,9.74153173]
[1765750000053,0.72,130.22,130.2,10.45153173]
[1765750000253,0.72,130.22,130.19,10.45196841]
[1765750005074,0.72,130.22,130.19,7.68089864]
[1765750005256,8.39951298,130.22,130.18,9.74271482]
[1765750005654,0.72,130.21,130.18,10.45271482]
[1765750005853,0.72,130.21,130.19,2.06106977]
[1765750006271,0.72,130.23,130.2,2.06106977]
[1765750006449,0.72,130.23,130.2,2.77106977]
[1765750008446,0.72,130.23,130.2,2.06106977]
[1765750008652,0.72,130.23,130.18,2.06106977]
[1765750008653,8.39876479,130.23,130.18,2.06106977]
[1765750008946,10.45983456,130.23,130.18,2.06106977]
[1765750009156,0.72,130.22,130.18,2.06106977]
[1765750009665,2.78106977,130.22,130.17,9.74310046]
[1765750010062,0.72,130.21,130.17,9.74310046]
[1765750010267,0.72,130.21,130.17,10.45310046]
[1765750010783,8.4001748,130.21,130.17,10.45310046]
[1765750011772,0.72,130.2,130.17,10.45310046]
[1765750013262,0.72,130.2,130.17,8.39203069]
[1765750013578,0.72,130.2,130.17,10.45310046]
[1765750014382,0.72,130.2,130.17,8.39203069]
[1765750014588,0.72,130.2,130.17,9.74310046]
[1765750015085,0.72,130.2,130.17,10.45310046]
[1765750016490,8.40055111,130.2,130.16,2.06106977]
[1765750016794,0.65,130.19,130.16,2.06106977]
[1765750017258,0.65,130.19,130.15,9.74430458]
[1765750017459,8.33129711,130.19,130.16,2.06106977]
[1765750017888,0.65,130.18,130.16,2.06106977]
[1765750018874,0.65,130.18,130.16,2.73106977]
[1765750020190,0.65,130.18,130.16,2.06106977]
[1765750026901,0.65,130.18,130.15,10.41430458]
[1765750034110,0.65,130.19,130.16,2.73106977]
[1765750035503,0.65,130.19,130.16,10.4137263]
[1765750037109,0.65,130.19,130.16,10.41476847]
[1765750050700,8.33112639,130.19,130.16,10.41476847]
[1765750050903,0.65,130.19,130.17,2.06211194]
[1765750055223,0.65,130.19,130.16,10.41476847]
[1765750057393,0.65,130.19,130.16,11.57451068]
[1765750063622,0.65,130.19,130.17,3.89185415]
[1765750063924,0.65,130.19,130.17,3.22185415]
[1765750064803,0.65,130.19,130.16,11.57451068]
[1765750065897,0.65,130.19,130.16,8.35265653]
[1765750066099,0.65,130.19,130.16,11.57451068]
[1765750067951,32.20084642,130.21,130.17,3.89185415]
[1765750068117,0.67,130.2,130.17,3.89185415]
[1765750068598,0.67,130.2,130.16,10.90451068]
[1765750068794,0.67,130.2,130.16,11.57451068]
[1765750069032,0.67,130.2,130.17,0.67]
[1765750069742,0.67,130.2,130.17,3.89185415]
[1765750071347,0.67,130.2,130.17,3.22185415]
[1765750072216,0.67,130.2,130.17,11.57410214]
[1765750072746,0.67,130.2,130.17,8.35224799]
[1765750074331,8.35054458,130.2,130.16,16.49256938]
[1765750074636,8.35054458,130.2,130.16,17.16256938]
[1765750074842,0.67,130.19,130.16,17.16256938]
[1765750075233,0.67,130.19,130.15,10.90557771]
[1765750075746,0.67,130.19,130.16,0.67]
[1765750076852,0.67,130.19,130.16,3.89230647]
[1765750077551,0.67,130.19,130.17,0.71]
[1765750077916,8.34054458,130.2,130.17,0.71]
[1765750078351,0.66,130.19,130.17,0.71]